Cogmind - Beta 17 @@@ ROGUE MODE // 2026.07.06 @ 02:11:52 Player: mischief_2000 Result: Self-destructed Performance ------------- Evolutions (8) 4000 Regions Visited (22) 4400 Robots Destroyed (165) 825 Value Destroyed (6742) 6742 Prototype IDs (128) 2560 Alien Tech Used (4) 800 Bonus (3528) 3528 TOTAL SCORE: 22855 Bonus ------- High Alert Combat Kills 1113 Follower Combat Kills 256 Registered with UFD 300 Met Optimus in HQ 500 MAIN.C Attacked Warlord 500 Met Optimus at Protoforge 1000 Friendly Fire -141 Cogmind --------- Core Integrity 316/1450 Matter 300/300 Energy 325/325 System Corruption 28% Temperature Hot (204) Movement Walking (100) Location -2/Protoforge Parts ------- > --- POWER (2) -------- Reinforced Antimatter Reactor > --- PROPULSION (8) --- Enhanced Biometal Leg Enhanced Biometal Leg Enhanced Biometal Leg Enhanced Biometal Leg > --- UTILITY (9) ------ Experimental Core Analyzer Experimental Core Analyzer Experimental Core Analyzer Graphene Brace > --- WEAPON (4) ------- Plasma Lance Plasma Lance Plasma Lance Plasma Lance > --- INVENTORY (5) ---- Enhanced Biometal Leg Impulse Thruster Array Medium Storage Unit Crosscalibrator Peak State ------------ > --- POWER ------------ Compact Particle Reactor Light Quantum Reactor > --- PROPULSION ------- Biometal Leg Heavy Shield Leg Experimental Biometal Leg Experimental Biometal Leg Experimental VSS Leg Experimental VSS Leg Experimental VSS Leg > --- UTILITY ---------- Medium Storage Unit Spectral Analyzer Advanced Sensor Array Advanced Signal Interpreter Experimental Core Analyzer Experimental Kinecellerator Advanced Reaction Control System Centrium Heavy Armor Plating > --- WEAPON ----------- Concept XC Strikerail Concept XC Strikerail Sigix Broadsword > --- INVENTORY -------- Quantum Reactor Impulse Thruster Array Advanced Actuator Array Improved Force Booster Advanced Cloaking Device Graphene Brace Crosscalibrator Vortex Shotgun Vortex Shotgun [Rating: 221] Favorites ----------- Power Light Nuclear Core Engine Ion Engine Power Core Light Nuclear Core Reactor Compact Particle Reactor Propulsion Cooled Nuclear Pulse Thruster Treads Light Treads Leg Experimental VSS Leg Wheel Compact Wheel Hover Unit Improved Airjet Flight Unit Cooled Nuclear Pulse Thruster Utility Advanced Signal Interpreter Device Advanced Sensor Array Storage Medium Storage Unit Processor Advanced Signal Interpreter Hackware Makeshift Hacking Suite Protection Improved Light Armor Plating Weapon Vibroblade Energy Gun Improved Medium Laser Energy Cannon Matter Neutralizer Ballistic Gun Concept XC Strikerail Ballistic Cannon Flak Cannon Launcher Missile Launcher Special Weapon Remote Datajack Impact Weapon Powered Hammer Slashing Weapon Vibroblade Piercing Weapon Plasma Lance Special Melee Weapon Improved Datajack Build | -11 -10 -9 -8 -7 -7 -7 -7 -5 -5 -5 -4 -4 -4 -4 -4 -4 -3 -3 -3 -2 -2 -2 ------- Run | Yrd Mat Mat Mat Fac Sto Rec Scr Fac Was Fac Fac Was Fac Upp Upp War Pro Res Tes Res Qua Frg Slots Evolved 16 | . . 2 2 2 . . . 4 . . 2 . . . . . . 2 . 2 . . Power 1 | . . . . . . . . 1 . . . . . . . . . . . . . . Propulsion 6 | . . 1 1 1 . . . . . . 1 . . . . . . 1 . 1 . . Utility 7 | . . 1 1 1 . . . 3 . . 1 . . . . . . . . . . . Weapon 2 | . . . . . . . . . . . . . . . . . . 1 . 1 . . Parts Attached 211 | 6 10 17 11 12 13 1 18 27 1 3 1 . 10 2 1 . 1 3 13 2 7 52 Power 27 | 1 . 1 1 1 1 . 1 4 . 1 . . 3 1 . . . . 3 . 2 7 Engine 8 | 1 . 1 . . . . 1 2 . 1 . . 1 1 . . . . . . . . Core 7 | . . . 1 1 1 . . 2 . . . . 2 . . . . . . . . . Reactor 12 | . . . . . . . . . . . . . . . . . . . 3 . 2 7 Propulsion 58 | 2 3 3 3 5 6 . 3 9 . . . . 2 . . . . 1 1 1 . 19 Treads 7 | . 3 3 . 1 . . . . . . . . . . . . . . . . . . Leg 25 | 2 . . 1 3 . . . . . . . . . . . . . . . . . 19 Wheel 3 | . . . 2 . 1 . . . . . . . . . . . . . . . . . Hover 2 | . . . . 1 . . . 1 . . . . . . . . . . . . . . Flight 21 | . . . . . 5 . 3 8 . . . . 2 . . . . 1 1 1 . . Utility 72 | 1 2 3 2 4 3 1 9 9 1 1 . . 4 1 1 . 1 2 6 . 1 20 Device 33 | . 1 1 . 1 3 1 4 5 . . . . 3 1 1 . 1 1 1 . 1 8 Storage 3 | 1 1 . . . . . . . . . . . 1 . . . . . . . . . Processor 14 | . . . . . . . 1 2 . . . . . . . . . 1 3 . . 7 Hackware 6 | . . . . 1 . . 2 2 . . . . . . . . . . 1 . . . Protection 16 | . . 2 2 2 . . 2 . 1 1 . . . . . . . . 1 . . 5 Artifact . | . . . . . . . . . . . . . . . . . . . . . . . Weapon 54 | 2 5 10 5 2 3 . 5 5 . 1 1 . 1 . . . . . 3 1 4 6 Energy Gun 13 | 2 1 4 1 1 2 . . . . . . . . . . . . . . . 2 . Energy Cannon 4 | . . . . 1 . . . 1 . . . . 1 . . . . . 1 . . . Ballistic Gun 6 | . . . 2 . 1 . . . . 1 . . . . . . . . . . . 2 Ballistic Cannon 6 | . 2 3 . . . . . 1 . . . . . . . . . . . . . . Launcher 6 | . 2 3 1 . . . . . . . . . . . . . . . . . . . Special Weapon 2 | . . . . . . . 2 . . . . . . . . . . . . . . . Impact Weapon 2 | . . . . . . . 1 . . . . . . . . . . . . . 1 . Slashing Weapon 7 | . . . 1 . . . 1 2 . . 1 . . . . . . . 1 . 1 . Piercing Weapon 6 | . . . . . . . 1 . . . . . . . . . . . 1 . . 4 Special Melee Weapon 2 | . . . . . . . . 1 . . . . . . . . . . . 1 . . Unidentified Prototypes 32 | . . 2 . 2 2 . 4 . . . . . . . . . . . 7 . 3 12 Parts Lost 61 | . . . 10 . 4 . . 5 . . . . 3 1 . . 1 . . . . 37 Power 12 | . . . 1 . . . . 1 . . . . 2 1 . . . . . . . 7 Propulsion 24 | . . . 5 . 3 . . 2 . . . . . . . . . . . . . 14 Utility 18 | . . . 4 . 1 . . 1 . . . . . . . . 1 . . . . 11 Weapon 7 | . . . . . . . . 1 . . . . 1 . . . . . . . . 5 Highest Loss Streak 10 | . . . 10 . 4 . . 2 . . . . 2 1 . . 1 . . . . 9 To Critical Strikes 1 | . . . . . . . . . . . . . . . . . . . . . . 1 Average Backups 8 | 4 12 14 14 14 9 5 4 3 4 3 3 4 8 10 9 10 10 9 9 9 9 7 Power . | . 1 1 1 1 . . . . . . . . . 1 1 1 1 1 . . . . Propulsion 1 | 2 4 3 3 3 2 2 1 . . . . . . 1 1 1 1 . . . . . Utility 3 | . 2 2 3 2 1 . 1 1 3 2 1 2 5 6 6 6 6 6 5 6 5 4 Weapon 2 | 1 5 6 5 4 3 1 1 . . . 1 2 1 1 1 1 2 2 3 3 2 1 Tool/Special . | . . . . . . . . . . . . . . . . . . . . . . . Unused Backups 32 | 1 1 4 1 . 5 . 2 3 . 3 1 . 2 2 1 2 . 1 1 . 1 1 Power 4 | . . . 1 . 2 . . . . . . . . . . . . . 1 . . . Propulsion 4 | . . . . . . . . 2 . . . . . . . . . 1 . . . 1 Utility 10 | . . . . . 2 . . . . 3 1 . 1 1 1 1 . . . . . . Weapon 9 | 1 1 4 . . 1 . . . . . . . 1 . . 1 . . . . . . Tool/Special 5 | . . . . . . . 2 1 . . . . . 1 . . . . . . 1 . Average Slot Usage (%) 88 | . 99 94 77 77 87 92 99 88 91 94 88 89 87 94 94 94 91 84 87 89 90 81 Engine 3 | . 14 11 6 . . . 3 1 . 3 5 5 3 5 5 5 5 4 . . . . Core 3 | . . . . 7 7 7 3 7 11 6 5 5 6 5 5 5 5 4 . . . . Reactor 1 | . . . . . . . . . . . . . . . . . . . 6 8 8 7 Treads 5 | . 26 29 21 3 1 . . . . . . . . . . . . . . . . . Leg 4 | . 1 . 2 18 7 . . . . . . . . . . . . . . . . 18 Flight 16 | . . . . . 22 38 38 20 21 23 21 21 25 26 26 26 26 27 28 29 30 8 Device 14 | . 7 13 . 4 8 15 19 13 17 17 15 15 15 21 21 21 21 19 21 17 20 16 Storage 4 | . 19 11 9 7 3 . . . . . . . 4 5 5 5 5 4 4 4 4 2 Processor 5 | . . . . . . . 1 10 11 11 10 10 10 10 10 10 7 8 9 8 8 9 Hackware 6 | . . . . 6 7 7 7 18 14 11 10 10 10 10 10 10 10 9 5 4 . . Protection 4 | . . 7 15 6 12 7 7 1 1 5 10 10 4 . . . . . . 4 4 4 Energy Gun 3 | . 21 13 1 3 1 7 1 . . . . . . . . . . . . . 1 1 Ballistic Cannon 1 | . 4 4 6 . . . . . . . . . . . . . . . . . . . Slashing Weapon 4 | . . . 3 6 7 7 1 6 5 4 5 5 4 5 5 5 5 4 5 8 7 2 Piercing Weapon 1 | . . . . . . . 3 . . . . . . . . . . . . . . 5 Peak Build Rating 221 | 6 8 22 26 34 38 37 52 92 93 97 99 99 112 120 115 114 114 118 146 168 188 221 Average Rating 85 | 5 7 15 21 27 32 32 39 80 91 95 96 98 102 113 113 113 109 109 132 159 169 176 On Entrance 79 | . 6 8 22 17 34 36 32 52 85 92 97 99 99 112 113 113 114 105 117 137 161 188 Avg Prop Armor Cover (%) 5 | . . . 7 10 7 . . 4 . . . . 2 . . . . 4 3 3 3 2 Naked Turns . | . . . . . . . . . . . . . . . . . . . . . . . Heaviest Build 113 | 13 33 46 47 40 40 21 19 31 26 33 30 30 39 39 39 39 39 39 47 56 74 113 Greatest Support 234 | 20 40 60 80 42 42 22 27 38 33 42 33 33 51 51 39 39 51 59 59 67 85 234 Greatest Overweight (x) 16 | 1 . . 2 2 12 . . 1 . . . . . . . . . . . 1 1 16 Average Overweight (x) . | . . . . . . . . . . . . . . . . . . . . . . . Largest Inventory Capacity 15 | 8 15 15 15 15 15 5 5 5 5 5 5 5 10 10 10 10 10 10 10 10 10 10 Average Capacity 9 | 7 14 15 15 15 9 5 5 5 5 5 5 5 9 10 10 10 10 10 10 10 10 8 Most Carried 15 | 8 15 15 15 15 15 5 5 5 5 5 5 5 10 10 10 10 10 10 10 10 10 10 Average Carried 9 | 4 12 14 14 14 9 5 4 4 4 4 4 4 8 9 9 10 10 9 9 8 9 7 Final Capacity 15 | 8 15 15 15 15 5 5 5 5 5 5 5 5 10 10 10 10 10 10 10 10 10 5 Final Carried 15 | 7 15 15 13 15 5 5 5 5 5 5 5 5 10 10 10 10 10 10 10 9 10 5 Scrap Suit Usage (%) 1 | . . . . . . . . . . . . . . . . . . . . . . 1 Parts Cannibalized 1 | . . . . . . . . . . . . . . . . . . . . . . 1 Class Distribution -------------------- 27% | Hacker-Sprinter 22% | Mutant 8% | Scavenger-Sprinter 7% | Scavenger-Mutant 5% | Ninja 5% | Scavenger-Gladiator 4% | Scavenger-Assassin 3% | Assassin 3% | Hacker-Mutant 3% | Derelict-Sprinter Dominant Class ---------------- Mutant | -10/Materials Mutant | -9/Materials Mutant | -8/Materials Scavenger-Mutant | -7/Factory Scavenger-Sprinter | -7/Storage Scavenger-Sprinter | -7/Recycling Scavenger-Sprinter | -7/Scraptown Hacker-Sprinter | -5/Factory Hacker-Sprinter | -5/Waste Hacker-Sprinter | -5/Factory Hacker-Sprinter | -4/Factory Hacker-Sprinter | -4/Waste Hacker-Sprinter | -4/Factory Hacker-Sprinter | -4/Upper Caves Hacker-Sprinter | -4/Upper Caves Hacker-Sprinter | -4/Warlord Hacker-Sprinter | -3/Proximity Caves Hacker-Ninja | -3/Research Ninja | -3/Testing Infiltrator-Ninja | -2/Research Ninja | -2/Quarantine Scavenger-Gladiator | -2/Protoforge Resources | -11 -10 -9 -8 -7 -7 -7 -7 -5 -5 -5 -4 -4 -4 -4 -4 -4 -3 -3 -3 -2 -2 -2 ----------- Run | Yrd Mat Mat Mat Fac Sto Rec Scr Fac Was Fac Fac Was Fac Upp Upp War Pro Res Tes Res Qua Frg Matter Collected 5187 | 260 228 460 233 228 221 159 283 409 20 164 . . 219 136 . . . . 222 33 132 1780 Remotely . | . . . . . . . . . . . . . . . . . . . . . . . Salvage Created 6984 | 182 552 661 244 228 213 159 . 594 . 277 17 . 260 . . . . . 234 33 224 3106 Parts 369 | 10 26 60 17 11 12 3 . 33 . 9 2 . 15 . . . . . 16 1 6 148 Haulers Intercepted 9 | . 1 1 . 1 1 . . 3 . 1 . . . . . . . . . . 1 . Recyclers Shooed 6 | 1 3 2 . . . . . . . . . . . . . . . . . . . . Parts Field Recycled . | . . . . . . . . . . . . . . . . . . . . . . . Retrieved Matter . | . . . . . . . . . . . . . . . . . . . . . . . Parts Self-Destructed 5 | . . . . . . . . . . . . . . . . . 5 . . . . . Prevented . | . . . . . . . . . . . . . . . . . . . . . . . Parts Restored . | . . . . . . . . . . . . . . . . . . . . . . . Kills | -11 -10 -9 -8 -7 -7 -7 -7 -5 -5 -5 -4 -4 -4 -4 -4 -4 -3 -3 -3 -2 -2 -2 ------- Run | Yrd Mat Mat Mat Fac Sto Rec Scr Fac Was Fac Fac Was Fac Upp Upp War Pro Res Tes Res Qua Frg Combat Hostiles Destroyed 104 | . 11 19 8 3 4 . . 7 . 1 . . . . . . . . 2 . . 49 Melee 24 | . . . 1 3 3 . . 3 . . . . . . . . . . 2 . . 12 Guns 45 | . 3 5 2 . . . . . . 1 . . . . . . . . . . . 34 Cannons 3 | . . 2 1 . . . . . . . . . . . . . . . . . . . AOE 32 | . 8 12 4 . 1 . . 4 . . . . . . . . . . . . . 3 Classes Destroyed 22 | 2 4 2 1 . . . . 1 . 1 . . . . . . . . 1 . 1 9 Worker 10 | . 1 4 . . . . . . . . 1 . 3 . . . . . . . 1 . Builder 4 | . . . 1 1 1 . . . . . . . 1 . . . . . . . . . Tunneler 7 | 5 . 2 . . . . . . . . . . . . . . . . . . . . Hauler 9 | . 1 1 . 1 1 . . 3 . 1 . . . . . . . . . . 1 . Recycler 14 | 1 4 2 2 . 1 2 . 1 . . . . 1 . . . . . . . . . Mechanic 2 | . . . . . . . . . . . . . . . . . . . . . . 2 Operator 4 | . . . . . . . . 1 . . . . . . . . . . 1 1 . 1 Drone 7 | . . . . . . . . . . . . . . . . . . . . . . 7 Watcher 10 | . . 2 . . . . . 1 . 2 . . 1 . . . . . 1 . 1 2 Swarmer 31 | . 6 7 4 . 4 . . 6 . . . . . . . . . . . . . 4 Grunt 26 | . 5 9 4 2 . . . 1 . . . . . . . . . . . . . 5 Brawler 4 | . . . . . . . . . . 1 . . . . . . . . . . . 3 Duelist 1 | . . . . . . . . . . . . . . . . . . . . . . 1 Protector 1 | . . . . . . . . . . . . . . . . . . . . . . 1 Researcher 1 | . . . . . . . . . . . . . . . . . . . . . 1 . Sentry 4 | . . 3 . 1 . . . . . . . . . . . . . . . . . . Specialist 2 | . . . . . . . . . . . . . . . . . . . . . . 2 Hunter 6 | . . . . . . . . . . . . . . . . . . . . . . 6 Programmer 5 | . . . . . . . . . . . . . . . . . . . . . . 5 Overlord 1 | . . . . . . . . . . . . . . . . . . . . . . 1 Striker 11 | . . . . . . . . . . . . . . . . . . . . . . 11 Executioner 3 | . . . . . . . . . . . . . . . . . . . . . . 3 Protovariant G 1 | . . . . . . . . . . . . . . . . . . . 1 . . . Protovariant X 1 | . . . . . . . . . . . . . . . . . . . 1 . . . Best Kill Streak 26 | 6 6 9 6 2 4 1 . 4 . 1 1 . 4 . . . . . 1 1 1 26 Combat Bots Only 20 | . 4 6 3 2 4 . . 4 . 1 . . . . . . . . 1 . . 20 Max Kills in Single Turn 3 | 1 2 3 2 1 1 1 . 2 . 1 1 . 1 . . . . . 1 1 1 3 Gunslinging 1 | . . . . . . . . . . . . . . . . . . . . . . 1 Exploded 3 | . 2 3 2 . 1 . . 2 . . . . . . . . . . . . . 2 Melee 1 | . . . 1 1 1 . . 1 . . . . . . . . . . 1 . . 1 Uniques/NPCs Destroyed . | . . . . . . . . . . . . . . . . . . . . . . . Combat | -11 -10 -9 -8 -7 -7 -7 -7 -5 -5 -5 -4 -4 -4 -4 -4 -4 -3 -3 -3 -2 -2 -2 -------- Run | Yrd Mat Mat Mat Fac Sto Rec Scr Fac Was Fac Fac Was Fac Upp Upp War Pro Res Tes Res Qua Frg Hostile Shots Fired 1133 | . 41 56 157 71 61 24 37 60 . 8 . . 45 6 . . 11 10 4 . 18 524 Missed 435 | . 15 18 55 18 25 12 19 26 . 4 . . 21 3 . . 7 5 2 . 11 194 Deflected 4 | . . . . . . . . . . . . . . . . . . . . . . 4 Hits 698 | . 26 38 102 53 36 12 18 34 . 4 . . 24 3 . . 4 5 2 . 7 330 Melee 27 | . . . . . . . . . . . . . . . . . . . . . . 27 Projectile 671 | . 26 38 102 53 36 12 18 34 . 4 . . 24 3 . . 4 5 2 . 7 303 AOE 2 | . . . 1 . . . . . . . . . 1 . . . . . . . . . Critical Strikes 33 | . 1 1 3 3 . . 1 . . . . . 2 . . . . . . . . 22 Actively Blocked 11 | . . . . . . . . . . . . . . . . . . . . . . 11 Part Disruptions 1 | . . . . . . . . . . . . . 1 . . . . . . . . . Damage Taken 16085 | . 309 463 1623 570 491 89 178 837 . 78 . . 513 60 . . 244 126 38 . 195 10271 Core 2246 | . 68 109 328 121 59 33 53 136 . 20 . . 186 16 . . . 83 . . 42 992 Absorbed by Shields 183 | . . . . . . . . 66 . . . . . . . . . . . . . 117 Redirected to Shielding 149 | . . . . 30 24 . . . . 24 . . . . . . . . . . . 71 Regen/Repaired (Parts) 1224 | . . . . 105 . . . 99 . 61 . . 41 . . . . 85 . . 49 784 Core Remaining (%) 75 | 100 72 72 40 . . . 62 . . 84 . . . . . . 82 . 93 . . . Volleys Fired 310 | 7 51 42 23 5 2 . . 11 . 19 . . 9 19 . 1 7 4 13 2 1 94 Largest 4 | 2 2 2 2 1 1 . . 1 . 1 . . 1 1 . 1 1 1 1 1 2 4 Hottest 184 | 90 90 112 90 80 55 . . 80 . 40 . . 105 105 . 105 105 105 113 113 120 184 Shots Fired 536 | 13 92 81 40 5 2 . . 11 . 19 . . 9 19 . 1 7 4 13 2 2 216 Gun 406 | 13 76 59 16 4 1 . . . . 19 . . . . . . . . . . 2 216 Cannon 92 | . 6 8 18 1 . . . 4 . . . . 9 19 . 1 7 4 13 2 . . Launcher 35 | . 10 14 6 . 1 . . 4 . . . . . . . . . . . . . . Special 3 | . . . . . . . . 3 . . . . . . . . . . . . . . Kinetic 228 | . 6 8 30 . . . . 1 . 19 . . . . . . . . . . . 164 Thermal 201 | 13 62 59 4 5 . . . 3 . . . . 9 19 . 1 7 4 13 2 . . Explosive 35 | . 10 14 6 . 1 . . 4 . . . . . . . . . . . . . . Electromagnetic 15 | . 14 . . . 1 . . . . . . . . . . . . . . . . . Entropic 54 | . . . . . . . . . . . . . . . . . . . . . 2 52 Robot Hit Streak 33 | 9 7 14 10 1 2 . . 3 . 6 . . . . . . . . . . 4 33 Robot Miss Streak 14 | 1 4 14 7 1 . . . 1 . 2 . . . . . . . . . . 1 7 Penetration Max 2 | . . . . . . . . . . 2 . . . . . . . . . . . 1 Secondary Targets 18 | . 1 1 1 . . . . . . . . . . . . . . . . . . 15 Max Gunslinging Chain 2 | . 1 1 1 . . . . . . . . . . . . . . . . . . 2 Shots Hit Robots 491 | 9 50 45 30 19 12 6 5 21 . 17 3 . 12 . . . . . 27 4 6 225 Core Hits 273 | 7 25 48 25 7 7 2 1 17 . 10 1 . 6 . . . . . 6 1 4 106 Critical Kills 9 | . . . . . . . . . . 2 . . . . . . . . . . . 7 Critical Parts Destroyed 17 | . . . . . . . . . . 3 . . . . . . . . . . . 14 Critical Strikes 50 | 2 3 6 . 1 . . . 2 . 5 . . 1 . . . . . 6 . . 24 Burn 11 | 2 3 6 . . . . . . . . . . . . . . . . . . . . Destroy 25 | . . . . . . . . . . 5 . . . . . . . . . . . 20 Sever 10 | . . . . 1 . . . 2 . . . . 1 . . . . . 6 . . . Impale 2 | . . . . . . . . . . . . . . . . . . . . . . 2 Detonate 2 | . . . . . . . . . . . . . . . . . . . . . . 2 Melee Attacks 400 | . . . 2 27 29 9 29 50 . 21 5 . 41 4 . . 5 8 39 9 22 100 Impact . | . . . . . . . . . . . . . . . . . . . . . . . Slashing 280 | . . . 2 27 29 9 . 48 . 18 4 . 39 4 . . 5 8 39 7 22 19 Piercing 110 | . . . . . . . 29 . . . . . . . . . . . . . . 81 Sneak Attacks 61 | . . . 1 2 4 3 . 6 . 2 3 . 7 . . . . . 25 2 3 3 Combat Hostiles . | . . . . . . . . . . . . . . . . . . . . . . . Follow-up Attacks 35 | . . . . . . . . 3 . . . . . . . . . . 1 . . 31 Damage Inflicted 22995 | 109 1156 1630 878 627 790 294 128 1235 . 255 256 . 997 . . . . . 2813 126 562 11139 Guns 9591 | 109 535 512 200 28 . . . . . 121 . . . . . . . . . . 110 7976 Cannons 253 | . 37 97 119 . . . . . . . . . . . . . . . . . . . Explosions 3378 | . 584 1021 457 . 245 . . 428 . . . . . . . . . . . . . 643 Melee 9758 | . . . 96 590 545 294 128 807 . 134 256 . 997 . . . . . 2813 126 452 2520 Ramming 15 | . . . 6 9 . . . . . . . . . . . . . . . . . . Kinetic 6460 | . 37 97 290 . . . . . . 121 . . . . . . . . . . . 5915 Thermal 1262 | 109 389 512 29 28 . . . . . . . . . . . . . . . . . 195 Explosive 3111 | . 512 1021 457 . 245 . . 428 . . . . . . . . . . . . . 448 Electromagnetic 218 | . 218 . . . . . . . . . . . . . . . . . . . . . Impact . | . . . . . . . . . . . . . . . . . . . . . . . Slashing 7799 | . . . 96 590 545 294 . 807 . 134 256 . 997 . . . . . 2813 126 452 689 Piercing 1959 | . . . . . . . 128 . . . . . . . . . . . . . . 1831 Entropic 2171 | . . . . . . . . . . . . . . . . . . . . . 110 2061 Highest Corruption 28 | . 2 . . 3 8 8 8 . . 1 . . 1 . . . 2 . 5 . . 28 Average Corruption 8 | . 2 . . 3 4 8 8 . . 1 . . 1 . . . 2 . 5 . . 17 Corruption Purged 1 | . . . . . . . . . . . . . 1 . . . . . . . . . Corruption Blocked . | . . . . . . . . . . . . . . . . . . . . . . . Effects 89 | . 6 . . 3 6 9 . . . 1 . . 2 . . . . . 5 . . 57 Message Errors 12 | . 2 . . . 2 . . . . . . . . . . . . . 2 . . 6 Matter Fused 33 | . 2 . . 3 1 4 . . . 1 . . 2 . . . . . 1 . . 19 Heat Flow Errors 6 | . . . . . . . . . . . . . . . . . . . . . . 6 Energy Discharges 10 | . 1 . . . 1 3 . . . . . . . . . . . . 1 . . 4 Parts Rejected 1 | . . . . . . . . . . . . . . . . . . . . . . 1 Data Loss (minor) 5 | . . . . . 1 1 . . . . . . . . . . . . . . . 3 Data Loss (major) 7 | . . . . . 1 1 . . . . . . . . . . . . 1 . . 4 Misfires 1 | . 1 . . . . . . . . . . . . . . . . . . . . . Alerts 1 | . . . . . . . . . . . . . . . . . . . . . . 1 Misdirections 7 | . . . . . . . . . . . . . . . . . . . . . . 7 Weapon Failures 6 | . . . . . . . . . . . . . . . . . . . . . . 6 Overload Shots . | . . . . . . . . . . . . . . . . . . . . . . . Overflow Damage 1020 | . 35 8 4 59 20 96 2 90 . . 12 . 99 . . . . . 144 18 193 240 Projectiles . | . . . . . . . . . . . . . . . . . . . . . . . Explosions 84 | . 35 8 4 . 16 . . 21 . . . . . . . . . . . . . . Melee 936 | . . . . 59 4 96 2 69 . . 12 . 99 . . . . . 144 18 193 240 Knockbacks 9 | . 1 . 8 . . . . . . . . . . . . . . . . . . . Impact . | . . . . . . . . . . . . . . . . . . . . . . . Kinetic 9 | . 1 . 8 . . . . . . . . . . . . . . . . . . . Secondary . | . . . . . . . . . . . . . . . . . . . . . . . Self-Inflicted Damage 86 | . 61 7 . . 18 . . . . . . . . . . . . . . . . . Shots 6 | . 3 2 . . 1 . . . . . . . . . . . . . . . . . Rammed . | . . . . . . . . . . . . . . . . . . . . . . . Targets Rammed 5 | . . . 2 3 . . . . . . . . . . . . . . . . . . Kicked 3 | . . . . 3 . . . . . . . . . . . . . . . . . . Crushed 2 | . . . 2 . . . . . . . . . . . . . . . . . . . Highest Temperature 457 | 100 298 412 392 40 29 19 31 102 . 204 . . 457 227 . 53 166 157 341 140 184 227 Average Temperature 95 | 42 133 80 219 17 17 18 6 22 . 83 . . 127 60 . 25 68 48 64 37 74 82 Received Heat Transfer 2153 | . 96 156 372 324 42 24 145 18 . 18 . . 438 24 . . 18 . 21 . 18 439 Effects 11 | . 1 1 3 . . . . . . . . . 2 . . . . . 4 . . . Shutdowns 2 | . . 1 1 . . . . . . . . . . . . . . . . . . . Energy Bleed 5 | . 1 . 2 . . . . . . . . . 2 . . . . . . . . . Interference 4 | . . . . . . . . . . . . . . . . . . . 4 . . . Siege Activations . | . . . . . . . . . . . . . . . . . . . . . . . Martial Activations . | . . . . . . . . . . . . . . . . . . . . . . . Shielding Activations 1 | . . . . . . . . . . . . . . . . . . . . . . 1 Total Turns 33 | . . . . . . . . . . . . . . . . . . . . . . 33 Longest Duration 33 | . . . . . . . . . . . . . . . . . . . . . . 33 Robots Disrupted . | . . . . . . . . . . . . . . . . . . . . . . . Combat Hostiles . | . . . . . . . . . . . . . . . . . . . . . . . Robots Corrupted 1 | . 1 . . . . . . . . . . . . . . . . . . . . . Combat Hostiles . | . . . . . . . . . . . . . . . . . . . . . . . Parts Fried 1 | . 1 . . . . . . . . . . . . . . . . . . . . . Impact Corruptions . | . . . . . . . . . . . . . . . . . . . . . . . Robots Melted . | . . . . . . . . . . . . . . . . . . . . . . . Combat Hostiles . | . . . . . . . . . . . . . . . . . . . . . . . Parts Melted 9 | 4 2 3 . . . . . . . . . . . . . . . . . . . . Heat Transferred 3510 | 445 1263 1554 74 74 . . . . . . . . . . . . . . . . . 100 Parts Sabotaged . | . . . . . . . . . . . . . . . . . . . . . . . Parts Stolen . | . . . . . . . . . . . . . . . . . . . . . . . Parts Stripped . | . . . . . . . . . . . . . . . . . . . . . . . Power Chain Reactions . | . . . . . . . . . . . . . . . . . . . . . . . Alert | -11 -10 -9 -8 -7 -7 -7 -7 -5 -5 -5 -4 -4 -4 -4 -4 -4 -3 -3 -3 -2 -2 -2 ------- Run | Yrd Mat Mat Mat Fac Sto Rec Scr Fac Was Fac Fac Was Fac Upp Upp War Pro Res Tes Res Qua Frg Maximum Alert Level 3 | . 1 2 1 . . . . 1 . 1 . . . . . . . . . . . 3 Low Security (%) 68 | 100 90 21 17 100 100 100 . 41 100 92 100 100 100 . . . . 100 100 100 100 30 Level 1 21 | . 9 64 82 . . . . 58 . 7 . . . . . . . . . . . 20 Level 2 2 | . . 13 . . . . . . . . . . . . . . . . . . . 6 Level 3 7 | . . . . . . . . . . . . . . . . . . . . . . 41 Level 4 . | . . . . . . . . . . . . . . . . . . . . . . . Level 5 . | . . . . . . . . . . . . . . . . . . . . . . . High Security . | . . . . . . . . . . . . . . . . . . . . . . . Max Security . | . . . . . . . . . . . . . . . . . . . . . . . Peak Influence 838 | 20 236 489 360 158 136 114 . 351 29 224 79 20 36 . . . . 58 42 33 128 838 Initial 193 | . 6 89 193 158 . 48 . . 29 13 55 20 7 . . . . . 18 18 12 51 Average 168 | 3 84 270 252 47 40 81 . 185 24 112 58 17 8 . . . . 25 9 21 61 447 Influence Increases 5375 | 30 388 646 416 139 298 152 . 628 . 371 54 . 167 60 . . 15 104 140 45 221 1501 Destroy 0b10 Robot/C 2040 | . 220 380 160 60 80 . . 140 . 120 . . . . . . . . 40 . 20 820 Destroy 0b10 Robot/NC 350 | 30 30 55 15 10 15 10 . 30 . 25 5 . 30 . . . . . 10 5 15 65 Destroy Leader 362 | . 52 96 20 12 12 . . 18 . 40 . . 2 . . . . . 2 . 4 104 Allied During Kill 108 | . . . . . . . . . . 108 . . . . . . . . . . . . Successful Hack 311 | . . 7 34 37 40 4 . 20 . 29 . . 34 . . . . 26 41 7 32 . Select Force Hacks 120 | . . . . . . 120 . . . . . . . . . . . . . . . . Disable Machine 300 | . 60 45 45 . 15 . . . . . . . . . . . . 15 . . 75 45 Anti-Garrison Action 200 | . . . . . . . . . . . . . . . . . . . . . . 200 Destroy Structure 564 | . 26 48 52 5 16 3 . 90 . 34 4 . 56 . . . . 18 32 18 15 147 Partial Spotted 435 | . . . . . 75 15 . 75 . 15 45 . 15 . . . . 45 15 15 45 75 Lose Combat Pursuer 585 | . . 15 90 15 45 . . 255 . . . . 30 60 . . 15 . . . 15 45 Influence Decreases 4679 | 20 186 401 524 488 172 198 80 543 66 276 109 49 149 88 . . 15 70 140 56 151 898 Entered New Map 999 | . 4 123 264 191 . 78 80 . 56 6 59 39 3 11 . . . . 16 16 11 42 Time Decay 2736 | 20 182 278 160 231 132 120 . 293 10 170 50 10 138 67 . . 15 70 124 40 140 486 Search Patrol Dispatched 200 | . . . . . . . . 200 . . . . . . . . . . . . . . Lost Part 578 | . . . 100 . 40 . . 50 . . . . 8 10 . . . . . . . 370 Lost Ally 100 | . . . . . . . . . . 100 . . . . . . . . . . . . Purge Threat 66 | . . . . 66 . . . . . . . . . . . . . . . . . . Squads Dispatched 66 | . 2 3 1 3 3 . . 10 . 15 1 . 15 . . . . 3 2 . 2 6 Investigation 38 | . 1 1 . 2 . . . 8 . 10 1 . 9 . . . . 2 1 . . 3 Extermination 10 | . . . . . 1 . . 2 . 1 . . 3 . . . . . 1 . 1 1 Reinforcement 14 | . 1 2 1 1 2 . . . . 1 . . 2 . . . . 1 . . 1 2 Assault 2 | . . . . . . . . . . 2 . . . . . . . . . . . . Garrison 2 | . . . . . . . . . . 1 . . 1 . . . . . . . . . Intercept . | . . . . . . . . . . . . . . . . . . . . . . . Searches Triggered 2 | . . . . . . . . 2 . . . . . . . . . . . . . . Construction Impeded . | . . . . . . . . . . . . . . . . . . . . . . . Haulers Reinforced 2 | . . . . . 1 . . . . 1 . . . . . . . . . . . . Active Scanning Responses . | . . . . . . . . . . . . . . . . . . . . . . . Cargo Convoy Interrupts . | . . . . . . . . . . . . . . . . . . . . . . . Stealth | -11 -10 -9 -8 -7 -7 -7 -7 -5 -5 -5 -4 -4 -4 -4 -4 -4 -3 -3 -3 -2 -2 -2 --------- Run | Yrd Mat Mat Mat Fac Sto Rec Scr Fac Was Fac Fac Was Fac Upp Upp War Pro Res Tes Res Qua Frg Distress Signals 30 | . 2 2 2 . 1 . . 1 . 3 . . 4 . . . . 1 1 . . 13 Communications Jammed . | . . . . . . . . . . . . . . . . . . . . . . . Distress Signals . | . . . . . . . . . . . . . . . . . . . . . . . Times Spotted 417 | . 16 34 23 10 15 4 10 30 . 22 1 5 42 5 . . 8 9 7 2 8 166 Peak Tracking Total 18 | . 6 7 10 3 9 2 10 14 . 9 1 5 8 4 . . 7 6 4 1 4 18 Tactical Retreats 48 | . . 1 4 1 2 1 1 10 . 4 . . 11 3 . . 2 3 . . 2 3 ECM-based Alert Blocks 70 | . . . . . . 2 . 2 . 12 . . 38 1 . . 7 6 . . 2 . Traps | -11 -10 -9 -8 -7 -7 -7 -7 -5 -5 -5 -4 -4 -4 -4 -4 -4 -3 -3 -3 -2 -2 -2 ------- Run | Yrd Mat Mat Mat Fac Sto Rec Scr Fac Was Fac Fac Was Fac Upp Upp War Pro Res Tes Res Qua Frg Traps Triggered 13 | . 1 1 . . 2 . . 5 . 1 1 . . . . . . . . . . 2 Indirectly 1 | . 1 . . . . . . . . . . . . . . . . . . . . . Trap Hack Attempts 1 | . . . . . . . . 1 . . . . . . . . . . . . . . Triggered . | . . . . . . . . . . . . . . . . . . . . . . . Disarmed . | . . . . . . . . . . . . . . . . . . . . . . . Reprogrammed . | . . . . . . . . . . . . . . . . . . . . . . . Reused 1 | . . . . . . . 1 . . . . . . . . . . . . . . . Traps Extracted . | . . . . . . . . . . . . . . . . . . . . . . . Installed 1 | . . . . . . . 1 . . . . . . . . . . . . . . . Triggered . | . . . . . . . . . . . . . . . . . . . . . . . Machines | -11 -10 -9 -8 -7 -7 -7 -7 -5 -5 -5 -4 -4 -4 -4 -4 -4 -3 -3 -3 -2 -2 -2 ---------- Run | Yrd Mat Mat Mat Fac Sto Rec Scr Fac Was Fac Fac Was Fac Upp Upp War Pro Res Tes Res Qua Frg Machines Disabled 29 | . 7 3 3 . 1 . 6 . . . . . . . . . . 1 . . 5 3 Max in Single Turn 3 | . 3 2 2 . 1 . 1 . . . . . . . . . . 1 . . 1 1 Garrison Access 5 | . . . . . . . . 1 . 1 . . . . . . . . 1 1 . 1 Machines Repaired . | . . . . . . . . . . . . . . . . . . . . . . . Machines Dismantled . | . . . . . . . . . . . . . . . . . . . . . . . Machines Sabotaged . | . . . . . . . . . . . . . . . . . . . . . . . Overloaded Fab Kills . | . . . . . . . . . . . . . . . . . . . . . . . Hacking | -11 -10 -9 -8 -7 -7 -7 -7 -5 -5 -5 -4 -4 -4 -4 -4 -4 -3 -3 -3 -2 -2 -2 --------- Run | Yrd Mat Mat Mat Fac Sto Rec Scr Fac Was Fac Fac Was Fac Upp Upp War Pro Res Tes Res Qua Frg Machines Accessed 110 | . 2 2 2 8 4 7 3 15 . 13 2 . 12 1 . 3 . 4 11 4 9 8 Terminals 48 | . 2 2 2 4 3 3 . 4 . 4 1 . 3 . . . . 2 5 3 5 5 Fabricators 6 | . . . . 1 . . . 1 . . 1 . . . . . . . 2 . . 1 Repair Stations 8 | . . . . 1 1 . . 1 . 1 . . 1 . . . . 1 1 . 1 . Recycling Units 28 | . . . . . . 4 . 6 . 8 . . 8 . . . . 1 . . . 1 Scanalyzers 8 | . . . . 2 . . . 2 . . . . . . . . . . 2 . 2 . Garrison Access 5 | . . . . . . . . 1 . . . . . . . . . . 1 1 1 1 Total Hacks 237 | . 10 8 4 25 7 11 9 26 . 22 5 . 22 1 . 6 . 10 23 12 19 17 Successful 135 | . 3 2 3 15 3 9 9 20 . 17 3 . 10 1 . 6 . 8 12 3 7 4 Failed 100 | . 7 6 1 10 4 2 . 5 . 5 2 . 12 . . . . 2 10 9 12 13 Catastrophic 16 | . 1 1 . 1 3 . . . . . 1 . 1 . . . . . 1 2 3 2 Database Lockouts 2 | . . . . . . . . 1 . . . . . . . . . . 1 . . . Manual 102 | . 10 8 2 11 3 5 . 10 . 12 1 . 15 . . . . 3 1 10 3 8 Terminals 117 | . 10 8 4 13 5 6 . 8 . 10 1 . 6 . . . . 6 10 11 11 8 Fabricators 16 | . . . . 3 . . . 1 . . 4 . . . . . . . 5 . . 3 Repair Stations 22 | . . . . 3 2 . . 2 . 2 . . 4 . . . . 3 2 . 4 . Recycling Units 38 | . . . . . . 5 . 6 . 10 . . 12 . . . . 1 . . . 4 Scanalyzers 22 | . . . . 6 . . . 8 . . . . . . . . . . 5 . 3 . Garrison Access 6 | . . . . . . . . 1 . . . . . . . . . . 1 1 1 2 Terminal Hacks 61 | . 2 1 1 7 2 5 9 3 . 7 . . 1 1 . 6 . 5 4 2 3 2 Record 6 | . . . . 1 . . 5 . . . . . . . . . . . . . . . Part Schematic 7 | . 2 . . 1 . . . . . 3 . . . . . . . . 1 . . . Robot Analysis 4 | . . . . . . . 4 . . . . . . . . . . . . . . . Prototype ID Bank 7 | . . . . . . . . . . . . . . . . 4 . 1 1 . 1 . Open Door 4 | . . . . . 1 . . . . . . . . 1 . 2 . . . . . . Level Access Points 1 | . . . . . . . . . . 1 . . . . . . . . . . . . Branch Access Points 7 | . . 1 1 1 . . . 1 . . . . 1 . . . . 1 . 1 . . Emergency Access Points 1 | . . . . 1 . . . . . . . . . . . . . . . . . . Recycling Unit Index 1 | . . . . . . . . . . . . . . . . . . 1 . . . . Alert Level 1 | . . . . . . 1 . . . . . . . . . . . . . . . . Unreport Threat 1 | . . . . 1 . . . . . . . . . . . . . . . . . . Locate Traps 4 | . . . . 1 . . . 1 . 1 . . . . . . . . . . 1 . Recall Investigation 1 | . . . . . . . . 1 . . . . . . . . . . . . . . Hauler Manifests 3 | . . . . . . 1 . . . 1 . . . . . . . 1 . . . . Registered Components 1 | . . . . . . 1 . . . . . . . . . . . . . . . . Registered Prototypes 2 | . . . . . . . . . . 1 . . . . . . . . 1 . . . Zone Layout 9 | . . . . 1 1 2 . . . . . . . . . . . 1 1 1 1 1 Proto ID Catalog 1 | . . . . . . . . . . . . . . . . . . . . . . 1 Fabricator Hacks 9 | . . . . 1 . . . 1 . . 3 . . . . . . . 4 . . . Network Status 2 | . . . . . . . . . . . 1 . . . . . . . 1 . . . Load Schematic 5 | . . . . 1 . . . 1 . . 1 . . . . . . . 2 . . . Build 2 | . . . . . . . . . . . 1 . . . . . . . 1 . . . Repair Station Hacks 12 | . . . . . 1 . . 2 . 2 . . 2 . . . . 2 1 . 2 . Scan Component 7 | . . . . . 1 . . 1 . 1 . . 1 . . . . 1 1 . 1 . Repair 5 | . . . . . . . . 1 . 1 . . 1 . . . . 1 . . 1 . Recycling Unit Hacks . | . . . . . . . . . . . . . . . . . . . . . . . Scanalyzer 13 | . . . . 5 . . . 6 . . . . . . . . . . 1 . 1 . Insert Component 3 | . . . . 1 . . . 2 . . . . . . . . . . . . . . Analyze 4 | . . . . 1 . . . 3 . . . . . . . . . . . . . . Retrieve Study 6 | . . . . 3 . . . 1 . . . . . . . . . . 1 . 1 . Garrison Access Hacks 3 | . . . . . . . . 1 . . . . . . . . . . 1 1 . . Seal Access 3 | . . . . . . . . 1 . . . . . . . . . . 1 1 . . Unauthorized Hacks 37 | . 1 1 2 2 . 4 . 7 . 8 . . 7 . . . . 1 1 . 1 2 Terminals 7 | . 1 1 2 1 . . . 1 . . . . . . . . . . . . 1 . Botnet 7 | . 1 1 2 1 . . . 1 . . . . . . . . . . . . 1 . Fabricators 1 | . . . . . . . . . . . . . . . . . . . 1 . . . Recompile 1 | . . . . . . . . . . . . . . . . . . . 1 . . . Repair Stations 1 | . . . . 1 . . . . . . . . . . . . . . . . . . Patch 1 | . . . . 1 . . . . . . . . . . . . . . . . . . Recycling Units 27 | . . . . . . 4 . 6 . 8 . . 7 . . . . 1 . . . 1 Tunnel 4 | . . . . . . 4 . . . . . . . . . . . . . . . . Fedlink 23 | . . . . . . . . 6 . 8 . . 7 . . . . 1 . . . 1 Scanalyzers . | . . . . . . . . . . . . . . . . . . . . . . . Garrison Access 1 | . . . . . . . . . . . . . . . . . . . . . . 1 Jam 1 | . . . . . . . . . . . . . . . . . . . . . . 1 Data Cores Recovered 2 | . . . . . . . . 1 . . . . . . . . . . . 1 . . Used 1 | . . . . . . . . 1 . . . . . . . . . . . . . . Hacking Detections 71 | . 2 2 1 7 3 4 . 8 . 5 2 . 6 . . . . 3 9 3 9 7 Full Trace Events 6 | . . . . 1 . . . . . . 1 . 2 . . . . 1 . . . 1 Feedback Events 1 | . . . . . . . . . . . . . 1 . . . . . . . . . Corruption 1 | . . . . . . . . . . . . . 1 . . . . . . . . . Feedback Blocked . | . . . . . . . . . . . . . . . . . . . . . . . Robot Schematics Acquired 1 | . . . . . . . . . . . . . . . . . . . . . 1 . Robots Built . | . . . . . . . . . . . . . . . . . . . . . . . Authchips . | . . . . . . . . . . . . . . . . . . . . . . . Time . | . . . . . . . . . . . . . . . . . . . . . . . Total Robot Build Rating . | . . . . . . . . . . . . . . . . . . . . . . . Part Schematics Acquired 11 | . 2 . . 2 . . . 2 . 3 . . . . . . . . 1 . 1 . Parts Built 1 | . . . . . . . . . . . . . . . . . . . 1 . . . Authchips 1 | . . . . . . . . . . . . . . . . . . . 1 . . . Time 225 | . . . . . . . . . . . 169 . . . . . . . 56 . . . Total Part Build Rating 6 | . . . . . . . . . . . . . . . . . . . 6 . . . Part Studies Acquired 6 | . . . . 3 . . . 1 . . . . . . . . . . 1 . 1 . Parts Repaired 5 | . . . . . . . . 1 . 1 . . 1 . . . . 1 . . 1 . Time 198 | . . . . . . . . 56 . 38 . . 51 . . . . 28 . . 25 . Parts Recycled . | . . . . . . . . . . . . . . . . . . . . . . . Recycled Matter . | . . . . . . . . . . . . . . . . . . . . . . . Retrieved Matter . | . . . . . . . . . . . . . . . . . . . . . . . Retrieved Components . | . . . . . . . . . . . . . . . . . . . . . . . Parts Scanalyzed 3 | . . . . 1 . . . 2 . . . . . . . . . . . . . . Part Schematics Acquired 3 | . . . . 1 . . . 2 . . . . . . . . . . . . . . Parts Damaged . | . . . . . . . . . . . . . . . . . . . . . . . Bothacking | -11 -10 -9 -8 -7 -7 -7 -7 -5 -5 -5 -4 -4 -4 -4 -4 -4 -3 -3 -3 -2 -2 -2 ------------ Run | Yrd Mat Mat Mat Fac Sto Rec Scr Fac Was Fac Fac Was Fac Upp Upp War Pro Res Tes Res Qua Frg Used RIF Installer . | . . . . . . . . . . . . . . . . . . . . . . . Robots Hacked 9 | . . . . . . . . 4 . 1 1 . 1 . . . . . . 2 . . Non-combat 9 | . . . . . . . . 4 . 1 1 . 1 . . . . . . 2 . . Combat . | . . . . . . . . . . . . . . . . . . . . . . . Robot Hacks Applied 9 | . . . . . . . . 4 . 1 1 . 1 . . . . . . 2 . . parse_system 1 | . . . . . . . . . . . . . . . . . . . . 1 . . no_distress 2 | . . . . . . . . 2 . . . . . . . . . . . . . . find_chute 2 | . . . . . . . . 1 . . 1 . . . . . . . . . . . find_recycling 4 | . . . . . . . . 1 . 1 . . 1 . . . . . . 1 . . Relay Couplers Released 2 | . . . . . . . . . . 2 . . . . . . . . . . . . Machine Destruction 2 | . . . . . . . . . . 2 . . . . . . . . . . . . Fabnet Peak Effective % . | . . . . . . . . . . . . . . . . . . . . . . . Robots Rewired . | . . . . . . . . . . . . . . . . . . . . . . . Allies Hacked . | . . . . . . . . . . . . . . . . . . . . . . . Hacks Repelled . | . . . . . . . . . . . . . . . . . . . . . . . Allies | -11 -10 -9 -8 -7 -7 -7 -7 -5 -5 -5 -4 -4 -4 -4 -4 -4 -3 -3 -3 -2 -2 -2 -------- Run | Yrd Mat Mat Mat Fac Sto Rec Scr Fac Was Fac Fac Was Fac Upp Upp War Pro Res Tes Res Qua Frg Total Allies 20 | . . . . . . . . . 20 . . . . . . . . . . . . . Largest Group 20 | . . . . . . . . . 20 6 . . . . . . . . . . . . Highest-Rated Group 726 | . . . . . . . . . 726 150 . . . . . . . . . . . . Highest-Rated Ally 50 | . . . . . . . . . 50 25 . . . . . . . . . . . . Initial UFD Resources 121 | . . . . . . . . 37 59 59 79 79 79 103 103 103 107 107 117 121 121 121 Total Orders . | . . . . . . . . . . . . . . . . . . . . . . . Ally Attacks 98 | . . . . . . . 7 . . 91 . . . . . . . . . . . . Total Damage 1509 | . . . . . . . 375 . . 1134 . . . . . . . . . . . . Kills 10 | . . . . . . . 2 . . 8 . . . . . . . . . . . . Allies Corrupted . | . . . . . . . . . . . . . . . . . . . . . . . Allies Melted 3 | . . . . . . . 1 . . . . . . . . . . . . . . 2 Turrets Deployed 1 | . . . . . . . 1 . . . . . . . . . . . . . . . Intel | -11 -10 -9 -8 -7 -7 -7 -7 -5 -5 -5 -4 -4 -4 -4 -4 -4 -3 -3 -3 -2 -2 -2 ------- Run | Yrd Mat Mat Mat Fac Sto Rec Scr Fac Was Fac Fac Was Fac Upp Upp War Pro Res Tes Res Qua Frg Active Infowar (turns) 5899 | . . 372 . 386 173 249 459 659 33 345 104 25 526 301 75 153 188 177 402 83 288 901 Optics 1828 | . . . . . . . . . . . . . . . . . . 154 402 83 288 901 Sensors 4331 | . . . . 386 43 . . 373 33 345 104 25 512 301 75 153 188 177 402 83 254 877 Structural 372 | . . 372 . . . . . . . . . . . . . . . . . . . . Traps 1019 | . . . . . . . . . . . . . . . . . . 152 402 83 288 94 Seismic 1124 | . . . . . 130 249 459 286 . . . . . . . . . . . . . . Cloaking 184 | . . . . . . . . . . . . . . 4 . . . . . 64 102 14 Jamming 217 | . . . . . . . . . . . . . . . . . 15 . 2 62 102 36 ECM 1931 | . . . . . . 122 . 392 33 345 104 25 423 58 . . 178 124 100 . 27 . Robot Analysis Total 4 | . . . . . . . 4 . . . . . . . . . . . . . . . Derelict Logs Recovered 1 | . . . . . . . . . . . . . . 1 . . . . . . . . Drone Launches . | . . . . . . . . . . . . . . . . . . . . . . . Drone Recoveries . | . . . . . . . . . . . . . . . . . . . . . . . Exploration | -11 -10 -9 -8 -7 -7 -7 -7 -5 -5 -5 -4 -4 -4 -4 -4 -4 -3 -3 -3 -2 -2 -2 ------------- Run | Yrd Mat Mat Mat Fac Sto Rec Scr Fac Was Fac Fac Was Fac Upp Upp War Pro Res Tes Res Qua Frg Turns Passed 7904 | 98 520 611 331 643 307 249 459 722 33 345 104 25 526 301 75 153 188 177 402 83 288 1264 Spaces Moved 12066 | 55 209 263 158 439 359 679 1416 1326 88 789 259 82 1047 669 292 617 478 345 715 158 625 998 Core 15 | 9 . . . . 5 . . . . . . . . . . . . . . . . 1 Treads 558 | . 200 263 89 6 . . . . . . . . . . . . . . . . . . Legs 707 | 46 9 . . 230 32 . . . . . . . . . . . . . . . . 390 Wheels 280 | . . . 69 203 8 . . . . . . . . . . . . . . . . . Hover . | . . . . . . . . . . . . . . . . . . . . . . . Flight 10503 | . . . . . 314 679 1416 1324 88 789 259 82 1046 669 292 617 478 345 715 158 625 607 Fastest Speed 6 | 50 120 160 105 101 25 25 25 25 27 17 27 27 11 11 24 24 11 6 6 6 6 6 Average Speed 38 | 111 158 160 141 116 43 25 25 29 27 26 27 27 23 23 24 24 23 23 21 19 19 62 Slowest Speed 850 | 120 160 160 160 240 650 25 26 99 30 27 27 27 27 24 24 24 24 27 27 93 93 850 Overloaded Moves 625 | . . . . . . . . . . 51 . . 126 18 . . 17 23 12 23 49 306 Propulsion Burnouts 1 | . . . . . . . . . . . . . . . . . . . . . . 1 Robots Hopped 33 | . . . . . 4 4 . 4 . 2 . . 9 . . . 1 1 2 2 3 1 Potential Cave-ins 22 | . . . . . . . . . . . . . 4 4 . . 6 . 2 . . 6 Cave-ins Triggered 2 | . . . . . . . . . . . . . . . . . 1 . . . . 1 Teleports 4 | . . . . . . . . 2 . . . . 1 . . . . . . . . 1 Exploration Rate (%) 49 | 3 57 43 28 12 62 95 82 42 68 32 10 75 30 84 53 87 64 12 75 9 64 52 Regions Visited 22 Branch Regions 10 Pre-discovered Areas 5 | . . . . . . 4 . 1 . . . . . . . . . . . . . . Known Exits Taken 11 | . . . . 1 . . . . . 1 . . 1 1 1 1 1 1 1 1 1 . Unknown Exits Taken 7 | 1 1 1 1 . 1 1 1 . . . . . . . . . . . . . . . Scrap Searched 15 | . . . . . . . 9 . . . . . . 4 2 . . . . . . . Spaces Dug 157 | . . . . 5 11 3 5 27 . 15 2 . 28 12 . . 6 8 17 5 6 7 Terrain Destroyed 402 | . 25 61 60 5 15 3 5 43 . 15 2 . 33 23 . . 12 10 23 6 6 55 Melee 133 | . . . . 5 11 3 5 25 . 15 2 . 24 4 . . 5 7 10 4 6 7 Projectile 95 | . . . . . . . . 2 . . . . 9 19 . . 7 3 13 2 . 40 AOE 174 | . 25 61 60 . 4 . . 16 . . . . . . . . . . . . . 8 Terrain Rammed . | . . . . . . . . . . . . . . . . . . . . . . . Walls Destroyed . | . . . . . . . . . . . . . . . . . . . . . . . Machines Disabled . | . . . . . . . . . . . . . . . . . . . . . . . Actions | -11 -10 -9 -8 -7 -7 -7 -7 -5 -5 -5 -4 -4 -4 -4 -4 -4 -3 -3 -3 -2 -2 -2 --------- Run | Yrd Mat Mat Mat Fac Sto Rec Scr Fac Was Fac Fac Was Fac Upp Upp War Pro Res Tes Res Qua Frg Total 14176 | 76 305 375 218 519 463 740 1494 1573 96 877 288 84 1246 786 295 621 536 422 891 194 749 1328 Wait 822 | . 18 7 11 12 25 54 1 109 3 38 16 1 114 87 . . 46 54 83 22 65 56 Move 11981 | 54 208 262 157 438 350 670 1415 1319 87 784 259 81 1029 668 291 616 474 342 710 153 619 995 Hop 30 | . . . . . 4 4 . 3 . 2 . . 8 . . . 1 1 2 2 2 1 Pick Up 108 | 8 11 16 4 7 3 . 5 12 2 4 2 1 14 3 1 2 . 1 3 . 4 5 Fast Attach 162 | 6 3 9 6 7 6 1 13 23 1 1 1 . 6 . . . . 3 15 1 12 48 Attach 54 | . . 1 4 4 7 . . 8 1 1 2 . 8 1 . . . 1 3 2 3 8 Detach 20 | . . . . . . 1 . 5 . . 1 . 3 . . . . 2 3 1 2 2 Swap 94 | . 8 13 4 8 1 . 9 6 . 3 . . 6 2 2 . 2 4 6 2 10 8 Drop 194 | 1 6 25 5 8 16 1 21 27 2 4 2 1 8 2 1 2 . 2 16 . 14 30 Fire 310 | 7 51 42 23 5 2 . . 11 . 19 . . 9 19 . 1 7 4 13 2 1 94 Melee 343 | . . . 2 27 29 9 29 44 . 21 5 . 41 4 . . 5 8 37 9 17 56 Ram . | . . . . . . . . . . . . . . . . . . . . . . . Kick 3 | . . . . 3 . . . . . . . . . . . . . . . . . . Crush 2 | . . . 2 . . . . . . . . . . . . . . . . . . . Escape Stasis 49 | . . . . . 20 . . 5 . . . . . . . . 1 . . . . 23 Rewire 2 | . . . . . . . . . . . . . . . . . . . . . . 2 Trap 2 | . . . . . . . 1 1 . . . . . . . . . . . . . . Miscellaneous . | . . . . . . . . . . . . . . . . . . . . . . . Route ------- -11/Scrapyard -10/Materials (discovered 2 exits: *Mat / [*Min]) -9/Materials (discovered 3 exits: *Mat / *Min x2) -8/Materials -7/Factory (discovered 4 exits: *Sto x2 / *Low x2) -7/Storage -7/Recycling (discovered 2 exits: *Fac / *Scr) -7/Scraptown -5/Factory (discovered 3 exits: *Fac / *Upp x2) -5/Waste -5/Factory (discovered 4 exits: *Fac x4) -4/Factory -4/Waste -4/Factory (discovered 5 exits: *Upp x2 / Ext x2 / Arm) -4/Upper Caves -4/Upper Caves -4/Warlord -3/Proximity Caves -3/Research (discovered 2 exits: *Tes x2) -3/Testing -2/Research (discovered 2 exits: *Qua x2) -2/Quarantine (discovered 2 exits: *Sec / *Frg) -2/Protoforge (discovered 1 exit: [*Acc]) History --------- Turn | Location | Event 6 | -11/Scrapyard | Discovered new exit (range 16) 99 | -11/Scrapyard | Entered Materials 308 | -10/Materials | Build established: Mutant 370 | -10/Materials | Discovered new exit (range 11) 593 | -10/Materials | Discovered new exit (range 10) 599 | -10/Materials | Derelicts attacked the area 619 | -10/Materials | Entered another Materials area 619 | -9/Materials | Evolved 2 slots: Propulsion x1, Utility x1 619 | -9/Materials | Discovered new exit (range 8) 935 | -9/Materials | Discovered new exit (range 13) 951 | -9/Materials | Identified exit to Mines 1206 | -9/Materials | Discovered new exit (range 15) 1230 | -9/Materials | Entered another Materials area 1230 | -8/Materials | Evolved 2 slots: Propulsion x1, Utility x1 1487 | -8/Materials | Core integrity fell below 50% 1517 | -8/Materials | Lost 10 parts (1p5n4u) 1551 | -8/Materials | Discovered new exit (range 3) 1561 | -8/Materials | Entered Factory 1561 | -7/Factory | Evolved 2 slots: Propulsion x1, Utility x1 1637 | -7/Factory | Identified exit to Storage 1637 | -7/Factory | Identified exit to Lower Caves 2186 | -7/Factory | Build established: Scavenger-Mutant 2204 | -7/Factory | Entered Storage 2297 | -7/Storage | Lost 4 parts (3n1u) 2510 | -7/Storage | Used back door to open Recycling access 2510 | -7/Storage | Discovered new exit (range 5) 2511 | -7/Storage | Entered Recycling 2581 | -7/Recycling | Discovered new exit (range 16) 2619 | -7/Recycling | Build established: Scavenger-Sprinter 2753 | -7/Recycling | Scanned before Scraplab entrance 2757 | -7/Recycling | Entered Scraplab 2759 | -7/Recycling | Discovered new exit (range 4) 2760 | -7/Recycling | Entered Scraptown 2761 | -7/Scraptown | System corruption cleaned by C-Scrubber 2806 | -7/Scraptown | Visited Symbiants 2811 | -7/Scraptown | Visited SPCMW 2867 | -7/Scraptown | Visited Assassins FH 2872 | -7/Scraptown | Visited Bundlers 2908 | -7/Scraptown | Visited Spacefarers 2918 | -7/Scraptown | Visited Observation Area 2923 | -7/Scraptown | Visited UFD Registry 2923 | -7/Scraptown | Registered with UFD as "Phasebox" 2933 | -7/Scraptown | Visited Curators Association 2937 | -7/Scraptown | Visited Supply Room 2941 | -7/Scraptown | Visited Junk Cannon Lab 2943 | -7/Scraptown | Found Prototype Special Weapon 2943 | -7/Scraptown | Identified Junk Cannon 2952 | -7/Scraptown | Visited Abandonware Association 2955 | -7/Scraptown | Learned abandonware demo "REPAIR.EXE" 2955 | -7/Scraptown | Learned abandonware demo "REBOOT5.EXE" 2987 | -7/Scraptown | Visited Analyses Database 2995 | -7/Scraptown | Visited Science Guys 2999 | -7/Scraptown | Visited A0-MCA Data Center 3001 | -7/Scraptown | Given a B rating by A0-MCA 3003 | -7/Scraptown | Found A0-MCA's Component Scanner 3009 | -7/Scraptown | Visited DA-N13 Charitable Foundation 3011 | -7/Scraptown | Found DCF Scrap (31 items) 3028 | -7/Scraptown | Visited Modified Component R&D 3050 | -7/Scraptown | Met Optimus 3050 | -7/Scraptown | Accepted into 0bPrime 3070 | -7/Scraptown | Civil war broke out across Scraptown 3082 | -7/Scraptown | Found Prototype Processor 3082 | -7/Scraptown | Identified Expert System 3096 | -7/Scraptown | Found Prototype Device 3096 | -7/Scraptown | Identified Personal Teleporter v0.10 3134 | -7/Scraptown | Lost 7 allies 3145 | -7/Scraptown | Found PL-3XN's Ring of Power 3153 | -7/Scraptown | DAS Turret deployed 3217 | -7/Scraptown | Discovered new exit (range 5) 3219 | -7/Scraptown | Entered Factory 3219 | -5/Factory | Evolved 4 slots: Power x1, Utility x3 3234 | -5/Factory | Lost 5 allies 3260 | -5/Factory | Identified exit to Upper Caves 3320 | -5/Factory | Loaded intel: 8 recycling unit locations 3337 | -5/Factory | Learned location of Protoforge (-2) 3519 | -5/Factory | Search patrols dispatched 3567 | -5/Factory | Discovered new exit (range 14) 3589 | -5/Factory | Build established: Hacker-Sprinter 3676 | -5/Factory | Repaired Nuclear Pulse Array? 3819 | -5/Factory | Search patrols dispatched 3937 | -5/Factory | Central database locked down 3941 | -5/Factory | Manually triggered Chute Trap 3941 | -5/Factory | Sucked down chute 3941 | -5/Factory | Entered Waste 3942 | -5/Waste | Joined by Warlord forces that had cleared the area 3965 | -5/Waste | Discovered new exit (range 15) 3970 | -5/Waste | Identified exit to Factory 3974 | -5/Waste | Entered Factory 3974 | -5/Factory | Accompanied by 6 allies 3996 | -5/Factory | Loaded intel: 8 recycling unit locations 4109 | -5/Factory | Garrison activated, responded to threat 4232 | -5/Factory | Identified exit to Factory 4261 | -5/Factory | Repaired Imp. Propulsion Shielding? 4319 | -5/Factory | Entered another Factory area 4319 | -4/Factory | Evolved 2 slots: Propulsion x1, Utility x1 4423 | -4/Factory | Sucked down chute 4423 | -4/Factory | Entered Waste 4426 | -4/Waste | Spotted C-40 Crusher 4426 | -4/Waste | Spotted C-40 Crusher 4427 | -4/Waste | Spotted C-40 Crusher 4431 | -4/Waste | Spotted C-40 Crusher 4437 | -4/Waste | Spotted C-40 Crusher 4441 | -4/Waste | Spotted C-40 Crusher 4444 | -4/Waste | Discovered new exit (range 13) 4448 | -4/Waste | Identified exit to Factory 4448 | -4/Waste | Entered Factory 4468 | -4/Factory | Spotted B-86 Titan 4498 | -4/Factory | Loaded intel: 8 recycling unit locations 4575 | -4/Factory | Repaired Broken Adv. Cloaking Device 4611 | -4/Factory | Garrison activated, responded to threat 4733 | -4/Factory | Identified exit to Upper Caves 4733 | -4/Factory | Identified exit to Extension 4733 | -4/Factory | Identified exit to Armory 4974 | -4/Factory | Entered Upper Caves 5013 | -4/Upper Caves | Encountered a Warlord checkpoint 5055 | -4/Upper Caves | Attracted the attention of an 0b10 checkpoint 5172 | -4/Upper Caves | Learned Research stockpile data 5274 | -4/Upper Caves | Discovered new exit (range 7) 5275 | -4/Upper Caves | Identified exit to Upper Caves 5275 | -4/Upper Caves | Entered another Upper Caves area 5346 | -4/Upper Caves | Discovered new exit (range 12) 5350 | -4/Upper Caves | Identified exit to Warlord 5350 | -4/Upper Caves | Entered Warlord 5468 | -4/Warlord | Visited the Vortex Lab 5469 | -4/Warlord | Found Vortex Shotgun 5471 | -4/Warlord | Found Vortex Shotgun 5490 | -4/Warlord | Warlord's base attacked by MAIN.C 5497 | -4/Warlord | Opened side exit 5502 | -4/Warlord | Discovered new exit (range 9) 5503 | -4/Warlord | Identified exit to Proximity Caves 5503 | -4/Warlord | Entered Proximity Caves 5593 | -3/Proximity Caves | Crushed by falling debris 5689 | -3/Proximity Caves | Discovered new exit (range 7) 5691 | -3/Proximity Caves | Identified exit to Research 5691 | -3/Proximity Caves | Entered Research 5691 | -3/Research | Evolved 2 slots: Propulsion x1, Weapon x1 5730 | -3/Research | Identified exit to Testing 5778 | -3/Research | Repaired Nuclear Pulse Array+ 5792 | -3/Research | Loaded intel: 5 recycling unit locations 5868 | -3/Research | Entered Testing 5878 | -3/Testing | Found Spectral Analyzer 5884 | -3/Testing | Watched by a mysterious "MATRIX" hacker 5961 | -3/Testing | Spotted Striker 5962 | -3/Testing | Spotted Striker 6020 | -3/Testing | Fabricated Cld. Nuclear Pulse Thruster? 6142 | -3/Testing | Destroyed PX-YYBGPXVTYP 6145 | -3/Testing | Found Prototype Processor 6145 | -3/Testing | Identified Exp. Targeting Computer 6148 | -3/Testing | Found Prototype Device 6148 | -3/Testing | Identified Exp. Transmission Jammer 6177 | -3/Testing | Destroyed PG-H6U9NV7ZB1 6188 | -3/Testing | Discovered new exit (range 20) 6190 | -3/Testing | Central database locked down 6199 | -3/Testing | Identified exit to Research 6231 | -3/Testing | Build established: Ninja 6270 | -3/Testing | Entered Research 6270 | -2/Research | Evolved 2 slots: Propulsion x1, Weapon x1 6281 | -2/Research | Identified exit to Quarantine 6353 | -2/Research | Entered Quarantine 6386 | -2/Quarantine | Found Alien Artifact 6448 | -2/Quarantine | Repaired Adv. Sensor Array 6461 | -2/Quarantine | Found Alien Impact Weapon 6461 | -2/Quarantine | Identified Core Stripper 6501 | -2/Quarantine | Found Alien Artifact 6511 | -2/Quarantine | Found Alien Artifact 6548 | -2/Quarantine | Found Alien Slashing Weapon 6548 | -2/Quarantine | Identified Sigix Broadsword 6618 | -2/Quarantine | Spotted Fortress 6636 | -2/Quarantine | Discovered new exit (range 5) 6636 | -2/Quarantine | Discovered new exit (range 6) 6636 | -2/Quarantine | Identified exit to Protoforge 6637 | -2/Quarantine | Identified exit to Section 7 6641 | -2/Quarantine | Entered Protoforge 6641 | -2/Protoforge | Spotted B-90 Cyclops 6654 | -2/Protoforge | Superfortress began startup sequence 6682 | -2/Protoforge | Spotted Hotshot 6682 | -2/Protoforge | Spotted Hotshot 6682 | -2/Protoforge | Discovered new exit (range 20) 6744 | -2/Protoforge | Identified Terrabomb 6744 | -2/Protoforge | Used Terrabomb 6744 | -2/Protoforge | Additional patrols dispatched to research labs 6746 | -2/Protoforge | Spotted Immortal 6746 | -2/Protoforge | Spotted Immortal 6746 | -2/Protoforge | Crushed by falling debris 6747 | -2/Protoforge | System corruption reached 10% 6749 | -2/Protoforge | Spotted Decapitator 6749 | -2/Protoforge | Spotted Decapitator 6749 | -2/Protoforge | Spotted Decapitator 6749 | -2/Protoforge | Spotted Decapitator 6752 | -2/Protoforge | Found Prototype Device 6752 | -2/Protoforge | Identified Crosscalibrator 6753 | -2/Protoforge | Identified Transdimensional Reconstructor 6756 | -2/Protoforge | Spotted Hotshot 6756 | -2/Protoforge | Spotted Hotshot 6774 | -2/Protoforge | Spotted V660-c 6774 | -2/Protoforge | Spotted V757-g 6774 | -2/Protoforge | Spotted V732-v 6777 | -2/Protoforge | Lost 3 parts (2n1u) 6799 | -2/Protoforge | Forge Plexus network access discovered 6807 | -2/Protoforge | Warped through subspace 6811 | -2/Protoforge | Found Cep. XC Strikerail 6854 | -2/Protoforge | Spotted SKR-2 6854 | -2/Protoforge | Spotted SKR-2 6854 | -2/Protoforge | Spotted SKR-2 6856 | -2/Protoforge | Spotted EXE-6 6856 | -2/Protoforge | Spotted EXE-6 6906 | -2/Protoforge | Spotted EXE-6 6906 | -2/Protoforge | Spotted EXE-6 6958 | -2/Protoforge | UFD initiated attack on Protoforge (Readiness: Adequate) 6958 | -2/Protoforge | Loaded intel: 3 recycling unit locations 6993 | -2/Protoforge | Found 0bPrime Scrap Suit 6995 | -2/Protoforge | Optimus greeted in Protoforge 7016 | -2/Protoforge | Found Exp. Kinecellerator 7028 | -2/Protoforge | Found Prototype Processor 7028 | -2/Protoforge | Identified Exp. Core Analyzer 7091 | -2/Protoforge | Spotted AP7-3 7104 | -2/Protoforge | Spotted AP7-3 7142 | -2/Protoforge | Spotted Overlord 7155 | -2/Protoforge | Spotted Striker 7155 | -2/Protoforge | Spotted Striker 7163 | -2/Protoforge | Optimus destroyed during the operation 7169 | -2/Protoforge | Spotted Striker 7172 | -2/Protoforge | Spotted Striker 7178 | -2/Protoforge | Destroyed Overlord 7184 | -2/Protoforge | Destroyed Striker 7190 | -2/Protoforge | Found Prototype Protection 7190 | -2/Protoforge | Identified Centrium Heavy Armor Plating 7210 | -2/Protoforge | Lost 19 allies 7221 | -2/Protoforge | Spotted Hotshot 7222 | -2/Protoforge | Spotted Hotshot 7274 | -2/Protoforge | Spotted Striker 7274 | -2/Protoforge | Spotted Striker 7279 | -2/Protoforge | Destroyed Striker 7284 | -2/Protoforge | Spotted Executioner 7285 | -2/Protoforge | Spotted Executioner 7288 | -2/Protoforge | Spotted Striker 7289 | -2/Protoforge | Destroyed Striker 7295 | -2/Protoforge | Destroyed Striker 7301 | -2/Protoforge | Build established: Scavenger-Assassin 7313 | -2/Protoforge | Spotted Executioner 7335 | -2/Protoforge | Spotted Hotshot 7338 | -2/Protoforge | Spotted Striker 7343 | -2/Protoforge | Spotted Striker 7346 | -2/Protoforge | Destroyed Striker 7360 | -2/Protoforge | Destroyed Striker 7370 | -2/Protoforge | Lost 23 allies 7373 | -2/Protoforge | Spotted Striker 7374 | -2/Protoforge | Spotted Striker 7387 | -2/Protoforge | Destroyed Striker 7408 | -2/Protoforge | Destroyed 20 combat bots 7409 | -2/Protoforge | Destroyed Striker 7435 | -2/Protoforge | Spotted Striker 7436 | -2/Protoforge | Spotted Striker 7436 | -2/Protoforge | Spotted Striker 7440 | -2/Protoforge | Spotted Striker 7445 | -2/Protoforge | UFD reported confirmed Drillbomb installation 7447 | -2/Protoforge | Lost 4 parts (1p1n2w) 7447 | -2/Protoforge | Destroyed Striker 7465 | -2/Protoforge | Spotted Hotshot 7516 | -2/Protoforge | UFD reported confirmed Drillbomb installation 7528 | -2/Protoforge | Spotted Striker 7530 | -2/Protoforge | Found Exp. Core Analyzer 7550 | -2/Protoforge | Lost 9 parts (2p2n3u2w) 7560 | -2/Protoforge | Spotted Striker 7574 | -2/Protoforge | Spotted Executioner 7579 | -2/Protoforge | Spotted Striker 7609 | -2/Protoforge | Found Exp. Core Analyzer 7631 | -2/Protoforge | Lost 18 allies 7641 | -2/Protoforge | Spotted Striker 7644 | -2/Protoforge | Spotted Striker 7650 | -2/Protoforge | Spotted Hotshot 7661 | -2/Protoforge | Destroyed Striker 7671 | -2/Protoforge | Spotted Executioner 7689 | -2/Protoforge | Destroyed Executioner 7690 | -2/Protoforge | Spotted Executioner 7733 | -2/Protoforge | UFD reported confirmed Drillbomb installation 7743 | -2/Protoforge | Core integrity fell below 50% 7758 | -2/Protoforge | Lost 6 allies 7765 | -2/Protoforge | Destroyed Executioner 7782 | -2/Protoforge | Spotted Executioner 7782 | -2/Protoforge | Spotted Executioner 7796 | -2/Protoforge | Build established: Scavenger-Gladiator 7796 | -2/Protoforge | Destroyed Executioner 7811 | -2/Protoforge | UFD reported confirmed Drillbomb installation 7835 | -2/Protoforge | Spotted Striker 7841 | -2/Protoforge | Found Exp. Core Analyzer 7848 | -2/Protoforge | Found Exp. Core Analyzer 7850 | -2/Protoforge | Lost 6 parts (2p1n3u) 7855 | -2/Protoforge | Spotted Striker 7858 | -2/Protoforge | Spotted Striker 7877 | -2/Protoforge | Destroyed Striker 7886 | -2/Protoforge | Spotted Striker 7891 | -2/Protoforge | Spotted Executioner 7892 | -2/Protoforge | Spotted Executioner 7894 | -2/Protoforge | Spotted Executioner 7894 | -2/Protoforge | P-80 Master assimilated allied Lugger 673 7905 | -2/Protoforge | Self-destructed Last Messages --------------- 07901_ Slug penetrates Lugger 673. 07901_ Slug penetrates H-88 Terminator. 07902_ Plasma Lance follow-up attack on Striker. 07903_ Penetrated by Slug. 07903_ Hvy. Shield Leg destroyed. 07903_ Slug penetrates I-47 Archangel. 07904_ System corrupted: Heat flow error (+261). 07904_ N-04 Retriever collects Ovr. Huge Scrapsphere. 07904_ N-04 Retriever collects Shield Leg. 07904_ Striker suffers critical hit (Burn). 07904_ B-74 Champion suffers critical hit (Destroy). 07904_ Adv. Actuator Array destroyed. 07904_ System corrupted by crushing effect (+2). 07905_ Exp. VSS Leg destroyed. 07905_ Mak. Medium Armor Plating destroyed. 07905_ N-04 Retriever collects Exp. Propulsion Shielding. 07905_ Biometal Leg destroyed. Map ----- +----------------------------------------------------+ | ?????##????????????????####+####??????? #####????? | | ?????##???????????????????? #????#? ##?##????? | | ?????##???????????????????? #????#? ##?##????? | | ??#####???????????????????? #????# ##?##????? | | ??###########?########+##### #????# #####????? | | ??##?????????????# ? # #????# #########? | | ??##?????????????# """ # #????# ???????? | | ??##?????????????# """ # #????# ???????? | | ??##?????????????# "S # #????# ????????? | | ??##?????????????# """ " " # ###### ????????? | | ??##?????????????# " " " # ###### #####????? | | ??################ " " # ##??## #####????? | | ??###### ## # ##??## #####????? | | ??????##?"" ;##;;;;;;### ###### #####????? | | ??????## ; !%!! ###### T###????? | | ??????##?"T # " "" ; T#### "###????? | | ##????##????? # !; ###; "####????? | | ##????##?????? " " ; ;;# # # ###????? | | ##????##????????# ;[*=; = " ##?###? | | ########????""??# %%=%!|[ !!#[! " ###????? | | ########??? #####;;;%/*!=!%=!%;%]!!!" ##????? | | ##?????###?###;;;;###;;;%%[!=*%!![%!%!% " ###????? | | ##??????? h = ![!*%=%=%= n" #????? | | ##??????? g i%% *%[[[%%*! %% %%; #????? | | ##??????? ^ % p% * !A[%*%|%[;;;; # ###????? | | ##?????#?? #########;; b @!*[!=%! *%;% %; #????? | | ###???##???##########; Kbb!!==!! *=%% ;* #????? | | ??????##???##???????#; b ==[**[!;==!%% ; ####### | | ??????#######?????? ; s=s[%==%%[ !!%% "!######## | | ??????#######?????## ; gh%[%=!! !*! %%"! ?????? | | ??????##???????????##;m E=%[%[*= ! %% & ###### | | ###???##???????????# ; EE =!=! = =[!%%% """###### | | ??#???##??????????# ; /[%=!= % % # | | ??#???##?????????# ; i ; ==!!![ % " "" # | | ??#???##?????????## ; % # !*=%*!% %% "" " # | | ??#???##??????????# %;% " !% =%!! %%" """" # | | ??#???##??????????# ; " [#=/#!!%; %% % # | | ??#???##?????????? ; #!=!=*/*%"% % % # | | ??#???##?????????? ; =!*==/!" "%!=%" % " | | ??#???###############; ="=!!=! " *! %! % " | | #?#???################ %=[!%! /%= =/ %%[ # | | ???????????? !=#[=!=!%!% % ""%""""##" | | ?????????? =%! %*%[%= %%% %% %%% | | ??????????? """ !#!%![!== %% % % %% % | | ??????????? """[ |=!%= %! % % % | | #?############# ""== ##=*![ %%%% ""*"""%"" | | ?????##########? """! # " % %=!!! % # | | ?????##??????##?? ""*! " " % %*=%[ ### | | ?????########## "["!% % #"" =!=*%[ # ## | | ?????########## !!=[[% ##""" /![!!!%!!########## | +----------------------------------------------------+ Best States ------------- Heat Dissipation 49 Energy Generation 49 Energy Capacity 600 Matter Stores 300 Matter Capacity 300 Sight Range 24 Robot Scan Range 16 Terrain Scan Density 10 ECM Strength 1 Jamming Range 22 Cloak Strength 4 Additional Mass Support 16 Armor Coverage 600 Resistance: EM 15 Propulsion Shielding 90 Utility Shielding 90 Weapon Shielding 66 Melee Speed Boost 20 Phase Shifting 15 Evasion (%) 77 Core Analysis 12 Armor Integrity Analysis 40 Recoil Reduction 4 Kinecelleration 66 Force Boost 30 Offensive Hacking 47 Authchip Count 1 Item Schematics ----------------- Hcp. Storage Unit | -10/Materials | Hacked Huge Storage Unit | -10/Materials | Hacked Imp. Flight Unit | -7/Factory | Scanalyzed Med. Storage Unit | -7/Factory | Hacked Cld. Nuclear Pulse Thruster | -5/Factory | Scanalyzed Power Sword | -5/Factory | Scanalyzed Q-thruster | -5/Factory | Hacked Adv. Reaction Control System | -5/Factory | Hacked Imp. Trap Extractor | -5/Factory | Hacked Adv. Phase Shifter | -3/Testing | Hacked Exp. Actuator Array | -2/Quarantine | Archive Robot Schematics ------------------ A-27 Freighter | -2/Quarantine | Archive Fabricated ------------ Cld. Nuclear Pulse Thruster | x1 | -3/Testing | Authchip Repaired ---------- Nuclear Pulse Array | 10% | -5/Factory Imp. Propulsion Shielding | 39% | -5/Factory Adv. Cloaking Device | 18% | -4/Factory | Broken Nuclear Pulse Array | 22% | -3/Research Adv. Sensor Array | 29% | -2/Quarantine Studied --------- Katana | -7/Factory | Hacked Plasma Cannon | -7/Factory | Hacked Aluminum Leg | -7/Factory | Hacked Nuclear Pulse Array | -5/Factory | Hacked Mic. Antimatter Reactor | -3/Testing | Hacked Q-thruster | -2/Quarantine | Hacked Alien Tech Used ----------------- Core Stripper Sigix Broadsword Terrabomb Transdimensional Reconstructor Achievements -------------- Speed Demon Challenges ------------ None Game ------ Seed ScanLongswordAutohacker Manual? 0 Play Time 04:50:56 Cumulative 334.9 hours Start 2026.07.04 @ 20:02:17 End 2026.07.06 @ 02:11:52 Sessions 17 Manual Loads 0 Difficulty Rogue Special Mode None Game No. 167 Rogue 167 Adventurer 0 Explorer 0 Win Type - Total 7 Types 4/0/1/1/0/0/0/1/0/0 Lore% 69 Gallery% 71 Achievement% 62 Wizard Run 0 Options --------- Layout 1 ASCII 0 Keyboard 0 Movement Mouse Keybinds 0 Fullscreen 1 Font 18/SmallcapsGlow Map View 54x44 Zoom Use 0% Tactical HUD 1 Map Filters NONE Filters NONE Steam 0 RUN: ef3f8862-c682-4240-a97c-c5083c8df8b1